{"text_format":"3","workbook":"xlsx","n_sheets":1,"sheets":["Sheet1"],"read":"whole","date_system":"1900"}

{"sheet":"Sheet1","index":0,"n_rows":118,"n_cols":11,"rows_kept":118,"merged":[[3,11,8,12]]}
["ID","Öğrenci Numaranız1","Ad","Soyad","Öğrenci Numaranız","Adınız ","Soyadınız","Programı","Mezuniyetinize engel olan dersiniz\n","Dersin öğretim elemanı\n","Kabul Edildi/ Reddedildi"]
[1,"202309025","Aleyna","Hal",{"$f":"CONCATENATE(LEFT(B2,8),REPT(\"*\",LEN(B2)-2))","v":"20230902*******"},{"$f":"CONCATENATE(LEFT(C2,2),REPT(\"*\",LEN(C2)-2))","v":"Al****"},{"$f":"CONCATENATE(LEFT(D2,2),REPT(\"*\",LEN(D2)-2))","v":"Ha*"},"Adalet","Klavye 4","Cihat Çetin","Kabul edildi"]
[2,"202309034","Bengisu","Arnavutoğlu","20230903*******",{"$f":"CONCATENATE(LEFT(C3,2),REPT(\"*\",LEN(C3)-2))","v":"Be*****"},"Ar*********","Adalet","Klavye-4","Cihat Çetin","Kabul edildi"]
[3,"2020309041","Didem","Ahıshalıoğlu","20203090********","Di***","Ah**********","Adalet","Klavye 4","Cihat Çetin ","Kabul edildi"]
[4,"202310018","Ecren","Saka","20231001*******","Ec***","Sa**","Adalet","İcra ve İflas Hukuku","Dilek Duygu Darıcı Çevik","Kabul edildi"]
[5,"202309023","Esra Nur","Diker","20230902*******","Es******","Di***","Adalet","Klavye 4","Cihat Çetin","Kabul edildi"]
[6,"202310008","Fatma","kılıç","20231000*******","Fa***","kı***","Adalet","klavye 4","cihat çetin","Kabul edildi"]
[7,"2025309054","Hilal Züleyha","TÜRK","20253090********","Hi***********","TÜ**","Adalet","KLAVYE 4","CİHAT ÇETİN","Giremez, İki dersten kalmış durumda"]
[8,"202309059","Hüseyin","uygur","20230905*******","Hü*****","uy***","Adalet","Klavye1,2,3,4","Cihat çetin","Giremez,Dört dersten kalmış durumda"]
[9,"202310040","Kenan","Metin","20231004*******","Ke***","Me***","Adalet","Ticari ceza hukuku","Hüseyin çağrı gülseven ","Kabul edildi"]
[10,"202309040","Kübra nur","balaban","20230904*******","Kü*******","ba*****","Adalet","meslek etiği ",null,"Giremez, Üç dersten kalmış durumda"]
[11,"192310020","Mehmet Talha","Köse","19231002*******","Me**********","Kö**","Adalet","Klavye Tekniği IV","Cihat Çetin","Giremez,İki dersten kalmış durumda"]
[12,"212310090","Melike","Çoban","21231009*******","Me****","Ço***","Adalet","Klavye Tekniği IV","Cihat Çetin","Kabul edildi"]
[13,"202310013","Melike","ilçi","20231001*******","Me****","il**","Adalet","Klavye 4","Cihat Çetin","Kabul edildi"]
[14,"202310070","Mesut","aktürk","20231007*******","Me***","ak****","Adalet","Icra ve iflas hukuku","Dilek duygu darıcı ","Kabul edildi"]
[15,"202310030","Müge","Özcan","20231003*******","Mü**","Öz***","Adalet","Klavye Tekniği 4","Cihat Çetin ","Kabul edildi"]
[16,"202310027","Müzeyyen Sena","KÜÇÜK","20231002*******","Mü***********","KÜ***","Adalet","Klavye 4","Cihat çetin ","Kabul edildi"]
[17,"202310067","NİLAY","ÖZBAK","20231006*******","Nİ***","ÖZ***","Adalet","Klavye Tekniği 4","Cihat Çetin","Kabul edildi"]
[18,"202310003","Rabia","söylemez","20231000*******","Ra***","sö******","Adalet","İcra ve İflas Hukuku ","Dilek Duygu Darıcı Çevik","Kabul edildi"]
[19,"202310032","Sarya","acar","20231003*******","Sa***","ac**","Adalet","Klavye 4","Cihat çetin","Kabul edildi"]
[20,"202309006","Selma Nur","Yılmaz","20230900*******","Se*******","Yı****","Adalet","Klavye 4","Cihat Çetin","Kabul edildi"]
[21,"202310037","Sinem","Dağlıoğlu","20231003*******","Si***","Da*******","Adalet","Cezaevi idaresi ve infaz bilgisi","Başak Oya Korap","Kabul edildi"]
[22,"202310012","Sude","Kara","20231001*******","Su**","Ka**","Adalet","Klavye 4","Cihat Çetin","Kabul edildi"]
[23,"202310068","Türkan","Ayas","20231006*******","Tü****","Ay**","Adalet","Klavye Teknikleri IV","Cihat Çetin ","Kabul edildi"]
[24,"202309085","ZEHRA","AMAÇ","20230908*******","ZE***","AM**","Adalet","Ceza muhakemesi hukuku","Necmettin Çakır ","Giremez,91 AKTS'si var"]
[25,"192310076","Berna","Özer","19231007*******","Be***","Öz**","Adalet","Klavye 4","Cihat Çetin ","Kabul edildi"]
[29,"202325033","Ayşe","Aydın","20232503*******","Ay**","Ay***","Büro Yönetimi ve Yönetici Asistanlğı","Klavye Teknikleri (II)","Cihat Çetin","Kabul edildi"]
[30,"202325060","Berfin","Aslan","20232506*******","Be****","As***","Büro Yönetimi ve Yönetici Asistanlğı","Klavye Teknikleri (II)","Cihat Çetin","Kabul edildi"]
[31,"202325047","Büşra","Bodur","20232504*******","Bü***","Bo***","Büro Yönetimi ve Yönetici Asistanlğı","Klavye Teknikleri 2","Cihat Çetin","Kabul edildi"]
[32,"202325017","Melike","Tetik","20232501*******","Me****","Te***","Büro Yönetimi ve Yönetici Asistanlğı","Atatürk İlkeleri ve İnkılap Tarihi 1 ","İbrahim Duman ","Kabul edildi"]
[33,"202325029","Mine","Gürcan","20232502*******","Mi**","Gü****","Büro Yönetimi ve Yönetici Asistanlğı","Atatürk İlkeleri Ve İnkılap Tarihi I","İbrahim Duman","Kabul edildi"]
[34,"202326022","Sedanur","Durmuş","20232602*******","Se*****","Du****","Büro Yönetimi ve Yönetici Asistanlğı","Klavye teknikleri","Cihat Çetin","REDDEDİLDİ; klavye 1 ile klavye 2 dersinden başarısız.."]
[35,"192325029","Selcan","aydın","19232502*******","Se****","ay***","Büro Yönetimi ve Yönetici Asistanlğı","Yabancı dil ingilizce ll","Baki karakuş","Kabul edildi"]
[36,"192325055","Selin","Nar",{"$f":"CONCATENATE(LEFT(B34,8),REPT(\"*\",LEN(B34)-2))","v":"19232505*******"},"Se***",{"$f":"CONCATENATE(LEFT(D34,2),REPT(\"*\",LEN(D34)-2))","v":"Na*"},"Büro Yönetimi ve Yönetici Asistanlğı","Klavye Teknikleri","CİHAT ÇETİN","REDDEDİLDİ; (Klavye 1, Klavye 2, Toplantı Yönetimi derslerinden başarısız)"]
[37,"202326034","Semanur","IŞIK","20232603*******","Se*****","IŞ**","Büro Yönetimi ve Yönetici Asistanlğı","Klavye Teknikleri 2","Öğr.Gör.Cihat ÇETİN","Kabul edildi"]
[38,"202326003","Sibel","çelik","20232600*******","Si***","çe***","Büro Yönetimi ve Yönetici Asistanlğı","Klavye teknikleri 2","Cihat ÇETİN","Kabul edildi"]
[39,"202325049","Sude Zeynep","SAVTEKİN","20232504*******","Su*********","SA******","Büro Yönetimi ve Yönetici Asistanlğı","Klavye Teknikleri","Cihat Çetin","REDDEDİLDİ; klavye 1 ile klavye 2 dersinden başarısız.."]
[40,"192326023","Şule","Cingirt","19232602*******","Şu**","Ci*****","Büro Yönetimi ve Yönetici Asistanlğı","mesleki yazışmalar ","Özgür Doğan GÜRCÜ","Kabul edildi"]
[41,"212326013","Zuhal","Yalçın","21232601*******","Zu***","Ya****","Büro Yönetimi ve Yönetici Asistanlğı","Bilgisayar büro programları","Özgür Doğan Gürcü","REDDEDİLDİ; 2021 Girişli ve klavye 2 ile Bilgisayar Büro Prog. Derslerinden başarısız."]
[42,"202325047","Büşra","Bodur","20232504*******","Bü***","Bo***","Büro Yönetimi ve Yönetici Asistanlğı","Klavye Teknikleri II","Cihat Çetin","Kabul edildi"]
[43,"202325017","Melike","Tetik","20232501*******","Me****","Te***","Büro Yönetimi ve Yönetici Asistanlğı","Atatürk İlkeleri ve İnkılap Tarihi 1 ","İbrahim Duman ","Kabul edildi"]
[44,"202302065","Beyza Nur","Arı","20230206*******","Be*******","Ar*","Çocuk Gelişimi","Çocuk Beslenmesi ","Mümine Kalındemiştaş küçük ","Kabul Edildi"]
[45,"202302056","ezgi","kaplan","20230205*******","ez**","ka****","Çocuk Gelişimi","Çocukta Sanat ve Yaratıcılık","Tuba Çoban","Kabul Edildi"]
[46,"202302052","Garipşah","Doğan","20230205*******","Ga******","Do***","Çocuk Gelişimi","Meslek Etiği","Mümine Kalındemirtaş Küçük","Reddedildi. ( AKTS112 Eğitimde araç gereç geliştirme dersinden de başarısız olmuştur)"]
[47,"202302025","Rana","Yılmaz","20230202*******","Ra**","Yı****","Çocuk Gelişimi","Çocuk Hakları ve Koruma","Özlem Uğur","Reddedldi (Öğrenci Okul Öncesi Eğitim Kurumlarında Uygulama-I dersinden de başarısız olmuştur.)"]
[48,"202301010","Saadet Ceren","Selim","20230101*******","Sa**********","Se***","Çocuk Gelişimi","Çocuk Sağlığı","Mümine Kalındemirtaş","Kabul edildi"]
[49,"202302028","Senem","KIZILOVA","20230202*******","Se***","KI******","Çocuk Gelişimi","Meslek etiği","Mümine KALIN DEMİRTAŞ","Kabul Edildi"]
[50,"202302062","Sevil","Batur","20230206*******","Se***","Ba***","Çocuk Gelişimi","Meslek Etiği","Mümine Kalındemirtaş Küçük","Kabul edildi"]
[51,"202302033","Duygu","yılmaz","20230203*******","Du***","yı****","Çocuk Gelişimi","Kişisel gelişim","Mümine kalındemirtaş","Reddedildi. ( Araştırma yöntem ve tekniklerinden de başarısıszolmuştur.)"]
[52,"202302017","Nazife Nur","BAYINDIR","20230201*******","Na********","BA******","Çocuk Gelişimi","Çocuk ve Müzik ","Nihal YİĞİTALP","Reddedildi. ( İnkılap tarihinden de başarısız olmuştur.)"]
[53,"192302061 ","Yunus","AKIN","19230206********","Yu***","AK**","Çocuk Gelişimi","Özel eğitim 1","Mümine kalındemirtaş küçük","Reddedildi.(İnkilap tarihi ve özel eğitim derslerimden de başarısız olmuştur.)"]
[54,"192319039","Atakan","keskin","19231903*******","At****","ke****","Medya ve İletişim","Film Çözümelemeri","Gülşah Ferrah Polat","Kabul Edildi"]
[55,"192320027","Atiye Aydan","Kısmet","19232002*******","At*********","Kı****","Medya ve İletişim","Çağdaş Dünya Sineması","Ayten Başer Yetimoğlu","Kabul Edildi"]
[56,"202317027","Berfin","günal","20231702*******","Be****","gü***","Medya ve İletişim","Çağdaş Dünya Sineması","Ayten Başer Yetimoğlu","Kabul Edildi"]
[57,"192320040","Buket","Kılıçaslan","19232004*******","Bu***","Kı********","Medya ve İletişim","Sinemada akımlar","Merve yazıcı","Kabul Edildi"]
[58,"202320042","Deniz mert","düzdağ","20232004*******","De********","dü****","Medya ve İletişim","Çağdaş dünya sineması","Ayten yetimoglu","Kabul Edildi"]
[59,"00192319059","Esra","doğan","00192319*********","Es**","do***","Medya ve İletişim","Dil anlatım","Uzem ","Kabul Edildi"]
[60,"202319038","Gizem nur","üstüntaş","20231903*******","Gi*******","üs******","Medya ve İletişim","Çağdaş Dünya Sineması ","Ayten yetimoğlu","Kabul Edildi"]
[61,"202319041","Gökçe","Bayram","20231904*******","Gö***","Ba****","Medya ve İletişim","Çağdaş Dünya Sineması ","Ayten Başer Yetimoğlu ","Kabul Edildi"]
[62,"202319039","İrem","yamak","20231903*******","İr**","ya***","Medya ve İletişim","Çağdaş dünya sineması ","Ayten Başer yetimoğlu","Kabul Edildi"]
[63,"192320044","Kürşad","Koyuncuoğlu","19232004*******","Kü****","Ko*********","Medya ve İletişim","Uzem Yabancı dil (ingilizce) 2","Ömer Erşah Çakmak","Kabul Edildi"]
[64,"192319027","Meliha","yeşil","19231902*******","Me****","ye***","Medya ve İletişim","Atatürk ilkeleri ve inkılap tarihi","İbrahim duman","Kabul Edildi"]
[65,"202320010","Muhammed Emre","ZAZA","20232001*******","Mu***********","ZA**","Medya ve İletişim","Çağdaş Dünya Sineması","Ayten Başer Yetimoğlu","Kabul Edildi"]
[66,"192319028","Rabia","Oğraş","19231902*******","Ra***","Oğ***","Medya ve İletişim","Film Çözümlemeleri","Gülşah Ferrah Polat","Kabul Edildi"]
[67,"202320005","Ramazan","Tokgöz","20232000*******","Ra*****","To****","Medya ve İletişim","Çağdaş Dünya Sineması","Ayten Başer Yetimoğlu","Kabul Edildi"]
[68,"202319056","Rümeysa","Ertürk",{"$f":"CONCATENATE(LEFT(B66,8),REPT(\"*\",LEN(B66)-2))","v":"20231905*******"},"Rü*****",{"$f":"CONCATENATE(LEFT(D66,2),REPT(\"*\",LEN(D66)-2))","v":"Er****"},"Medya ve İletişim","Medya ve etik ","Gülşah Polat ","Kabul Edildi"]
[69,"202319020","Salih can","Çoşkun","20231902*******",{"$f":"CONCATENATE(LEFT(C67,2),REPT(\"*\",LEN(C67)-2))","v":"Sa*******"},"Ço****","Medya ve İletişim","Yabancı dil","Baki Karakuş","Kabul Edildi"]
[70,"202320023","Senanur","sahin","20232002*******","Se*****","sa***","Medya ve İletişim","Film videoda kurgu","Ayten yetim baseroglu","Kabul Edildi"]
[71,"192319050","Şerife cansu","Atasever","19231905*******","Şe**********","At******","Medya ve İletişim","Basın fotoğrafçılığı ","Merve yazıcı","Kabul Edildi"]
[72,"202327013","Deniz","Demir","20232701*******","De***","De***","Muhasebe ve Vergi Uygulamaları","Temel hukuk"," Mustafa Talha uzuner","Reddedildi, birden fazla dersten kalmış."]
[73,"202327008","Dilan","öcal","20232700*******","Di***","öc**","Muhasebe ve Vergi Uygulamaları","İş ve sosyal güvenlik hukuku","Mustafa Talha uzuner","Kabul Edildi"]
[74,"202327067","Ebru","Ceylan","20232706*******","Eb**","Ce****","Muhasebe ve Vergi Uygulamaları","İnşaat muhasebesi","Sevil ŞİN ","Kabul Edildi"]
[75,"202327007","Eliz Sude","ŞEN","20232700*******","El*******","ŞE*","Muhasebe ve Vergi Uygulamaları","Finansal Yönetimi","Cem GÜL","Kabul Edildi"]
[76,"202327011","FİLİZ","SATIR","20232701*******","Fİ***","SA***","Muhasebe ve Vergi Uygulamaları","İş ve Sosyal Güvenlik Hukuku ","Mustafa Talha Uzuner","Kabul Edildi"]
[77,"202327066 ","İlayda Su","MARAL","20232706********","İl*******","MA***","Muhasebe ve Vergi Uygulamaları","Vergi Hukuku","Sevil ŞİN","Kabul Edildi"]
[78,"202327015","Meltem","Kılınç","20232701*******","Me****","Kı****","Muhasebe ve Vergi Uygulamaları","Muhasebe denetimi","Mustafa Talha Uzuner","Kabul Edildi"]
[79,"172327013","miray","kahya","17232701*******","mi***","ka***","Muhasebe ve Vergi Uygulamaları","temel hukuk","talha uzuner","Reddedildi, birden fazla dersten kalmış."]
[80,"202327051","kürşad","demir","20232705*******","kü****","de***","Muhasebe ve Vergi Uygulamaları","güzde vergi hukuku bahar dönemi muhasebe denetimi mali tablolar meslek etiği ","Mustafa Talha uzuner.Sevil şin ","Reddedildi, birden fazla dersten kalmış."]
[81,"202308049","Aleyna","tavukcu","20230804*******","Al****","ta*****","Özel Güvenlik ve Koruma","İş sosyal ve güvenlik hukuku ","Ali Eser","Kabul Edildi"]
[82,"202307011","betül","ayyıldız","20230701*******","be***","ay******","Özel Güvenlik ve Koruma","YANGIN GÜVENLİĞİ VE TABİİ AFETLERE MÜDAHALE","TALHA SERT ","Kabul Edildi"]
[83,"202308067","Burak","Akça","20230806*******","Bu***","Ak**","Özel Güvenlik ve Koruma","İŞ ve Sosyal Güvenlik Hukuku","Ali Eser","Kabul Edildi"]
[84,"202307065","Elif","Öcal","20230706*******","El**","Öc**","Özel Güvenlik ve Koruma","İş ve sosyal Güvenlik Hukuku","Ali Eser","Kabul Edildi"]
[85,"202307033","Emirhan","Kırlak","20230703*******","Em*****","Kı****","Özel Güvenlik ve Koruma","Yurttaşlık ve İnsan Hakları ","İsmet Nezih Abanoz","Kabul Edildi"]
[86,"202308060","Haktan","temirlenk","20230806*******","Ha****","te*******","Özel Güvenlik ve Koruma","Mesleki yabancı dil 1","Ali eser","Kabul Edildi"]
[87,"192308027","HÜSEYİN ERAY","KAYAN","19230802*******","HÜ**********","KA***","Özel Güvenlik ve Koruma","yabancı dil 2","uzem","Kabul Edildi"]
[88,"202307053","Melisa","Gülabi","20230705*******","Me****","Gü****","Özel Güvenlik ve Koruma","Terör ve terörizm ","Talha sert ","Kabul Edildi"]
[89,"202308051","Olcay","Tavukcu","20230805*******","Ol***","Ta*****","Özel Güvenlik ve Koruma","İŞ ve Sosyal Güvenlik Hukuku","Ali Eser","Kabul Edildi"]
[90,"192307056","Ömer Faruk","Kocatepe","19230705*******","Öm********","Ko******","Özel Güvenlik ve Koruma","Türkiye AB İlişkileri","İsmet Nezih Abanoz","Kabul Edildi"]
[91,"202307062","Özlem","Gülabi","20230706*******","Öz***","Gü****","Özel Güvenlik ve Koruma","Silah Bilgisi","Bayram Karakurt ","Kabul Edildi"]
[92,"202307045","Büşra","Böyük","20230704*******","Bü***","Bö***","Özel Güvenlik ve Koruma","Türk Dili ve Edebiyatı ",null,"Kabul Edildi"]
[93,"202312044","aleyna","özkan","20231204*******","al****","öz***","Sosyal Hizmetler","sosyal hizmetlerin yapısı ve yönetimi","zülal şahin","Kabul Edildi"]
[94,"202311045","Ayşen","Tutak","20231104*******","Ay***","Tu***","Sosyal Hizmetler","Yerel Yönetimler ve Sosyal Hizmet","Öğr. Gör. Mahmut Sami Köktaş ","Kabul Edildi"]
[95,"162311056","Büşra","Babur","16231105*******","Bü***","Ba***","Sosyal Hizmetler","Yuzem İngilizce 1",null,"Kabul Edildi"]
[96,"192312026","Büşra","Kaçar","19231202*******","Bü***","Ka***","Sosyal Hizmetler","Sosyal hizmetlerin yapısı ve yönetimi ","Zülal Şahin ","Kabul Edildi"]
[97,"202311059","Büşra","Kaya","20231105*******","Bü***","Ka**","Sosyal Hizmetler","Türk Dili 1 ","Ezgi Şahin Sevdi ","Red Edildi, İki ders başarısız"]
[98,"202312023","Ceren","Kıral","20231202*******","Ce***","Kı***","Sosyal Hizmetler","Yabancı Dil 1","Çağrı Erkoç ","Red Edildi, İki ders başarısız"]
[99,"202312056 ","Dilara","buçakçı","20231205********","Di****","bu*****","Sosyal Hizmetler","Göç ve kentleşme sorunları","Selman yarcı","Red Edildi, Üç ders başarısız"]
[100,"202312018","Gülcan","can",{"$f":"CONCATENATE(LEFT(B98,8),REPT(\"*\",LEN(B98)-2))","v":"20231201*******"},"Gü****",{"$f":"CONCATENATE(LEFT(D98,2),REPT(\"*\",LEN(D98)-2))","v":"ca*"},"Sosyal Hizmetler","Yerel yönetim ","Mahmut sami köktaş","Kabul Edildi"]
[101,"202312039","Güller","Gülen","20231203*******","Gü****","Gü***","Sosyal Hizmetler","Göç ve kentleşme ","Selman Yarcı ","Kabul Edildi"]
[102,"192312031","Helin","Yıldırım","19231203*******","He***","Yı******","Sosyal Hizmetler","Göç Ve Kentleşme Sorunları","Selman Yarcı ","Kabul Edildi"]
[103,"202312052","İlknur","Özdoğan","20231205*******","İl****","Öz*****","Sosyal Hizmetler","Yerel Yönetimler","Mahmut Sami Köktaş","Kabul Edildi"]
[104,"202311029 ","Kadriye Bahar","Oner","20231102********","Ka***********","On**","Sosyal Hizmetler","Sosyal Hizmetlerin Yapısı ve Yönetimi ","Zülal Şahin","Red Edildi, Üç ders başarısız ve AKTS eksiği var"]
[105,"192311033","Kübra","cin","19231103*******","Kü***","ci*","Sosyal Hizmetler","Sosyal hizmetlerin yapısı ve yönetimi ","Zülal şahin ","Kabul Edildi"]
[106,"202312010","Melis","Meriç","20231201*******","Me***","Me***","Sosyal Hizmetler","Göç ve kentleşme sorunları ","SelmanYarcı ","Kabul Edildi"]
[107,"202311047","Necla serenay","erdem","20231104*******","Ne***********","er***","Sosyal Hizmetler","Yerel yönetimler ve sosyal hizmet ","Mahmut sami Köktaş ","Red Edildi, Üç ders başarısız"]
[108,"202311019","öznur","arıca","20231101*******","öz***","ar***","Sosyal Hizmetler","sosyal hizmetlerin yapısı ve yönetimi ","zülal şahin","Kabul Edildi"]
[109,"202312043","Sude","Kahramanoğlu","20231204*******","Su**","Ka**********","Sosyal Hizmetler","Göç ve kentleşme sorunları","Selman Yarcı","Kabul Edildi"]
[110,"192311019","Zeynep","Yöney","19231101*******","Ze****","Yö***","Sosyal Hizmetler","Atatürk İlkeleri ve inkilap tarihi",null,"Kabul Edildi"]
[114,"202306016","Canberk","Bacak","20230601*******","Ca*****","Ba***","Yerel Yönetimler","Hukuka giriş ","Oya Başak Korap","Kabul Edildi"]
[115,"202305016","Emir Yusuf","Hiçyılmaz","20230501*******","Em********","Hi*******","Yerel Yönetimler","İş ve sosyal güvenlik hukuku ","Dilek Duygu Darıcı Çevik ","Kabul Edildi"]
[116,"202305013","Emre","Savacı","20230501*******","Em**","Sa****","Yerel Yönetimler","İş ve Sosyal Güvenlik Hukuku","Dilek Duygu Darıcı Çevik","Kabul Edildi"]
[117,"202305008","Esra","Demir","20230500*******","Es**","De***","Yerel Yönetimler","Atatürk ilkeleri ve inkılap tarihi 1","İbrahim Duman","Kabul Edildi"]
[118,"202305055","Figan","Çakır","20230505*******","Fi***","Ça***","Yerel Yönetimler","Türk dil edebiyatı","1. Öğretim","Kabul Edildi"]
[119,"202306007","haşim","yazıcı","20230600*******","ha***","ya****","Yerel Yönetimler","iş ve sosyal güvenlik hukuku","dilek duygu darıcı çevik","Kabul Edildi"]
[120,"202306010","Melih","özdemir","20230601*******","Me***","öz*****","Yerel Yönetimler","İş Güvenliği Ve sosyal hukuk","Duygu Çevik","Kabul Edildi"]
[121,"202305006","Ulaş","Kavlakoğlu","20230500*******","Ul**","Ka********","Yerel Yönetimler","İş ve Sosyal Güvenlik Hukuku ","Dilek Duygu Darıcı Çevik ","Kabul Edildi"]
[122,"202305021","Yaren","Sıtkı","20230502*******","Ya***","Sı***","Yerel Yönetimler","İş ve sosyal güvenlik hukuku ","Dilek Duygu Darıcı çevik ","Kabul Edildi"]
[123,"202305006","Ulaş","Kavlakoğlu","20230500*******","Ul**","Ka********","Yerel Yönetimler","İş ve Sosyal Güvenlik Hukuku ","Dilek Duygu Darıcı Çevik ","Kabul Edildi"]